fUST/lending_fUST_20240111
["ID","MTS","AMOUNT","RATE_DAILY","PERIOD"]
[311148179,1704933039893,-1821.85168105,0.0002707,2]
[311148180,1704933039902,-2079.63666476,0.0002707,2]
[311148181,1704933039911,-300.0,0.0002707,2]
[311148182,1704933039919,-155.0,0.00027397,2]
[311148183,1704933039928,-500.0,0.00027397,2]
[311148184,1704933039937,-500.0,0.00027534,2]
[311148185,1704933039946,-500.0,0.00027671,2]
[311148186,1704933039955,-151.00906054,0.00027682,7]
[311148187,1704933039964,-7678.91489897,0.0002769,2]
[311148188,1704933039974,-687.59711705,0.000277,2]
[311148189,1704933039983,-624.82712203,0.0002772,2]
[311148190,1704933039993,-500.0,0.00027808,2]
[311148191,1704933040104,-500.0,0.00027945,2]
[311148192,1704933040114,-3089.70069499,0.00027998,2]
[311148193,1704933040124,-157.52979972,0.00028,2]
[311148194,1704933040133,-500.0,0.00028082,2]
[311148195,1704933040143,-19079.18622449,0.00028171,2]
[311148196,1704933040153,-500.0,0.00028219,2]
[311148197,1704933040163,-151.00906054,0.00028247,4]
[311148198,1704933040173,-500.0,0.00028356,2]
[311148199,1704933040182,-500.0,0.00028493,2]
[311148200,1704933040191,-9098.22062588,0.00028499,4]
[311148201,1704933040200,-500.0,0.0002863,2]
[311148202,1704933040209,-254.05524745,0.00028701,3]
[311148203,1704933040218,-155.0,0.00028767,2]
[311148204,1704933040228,-500.0,0.00028767,2]
[311148205,1704933040238,-151.00906054,0.00028823,2]
[311148206,1704933040247,-500.0,0.00028904,2]
[311148207,1704933040256,-185.7733706,0.00029,2]
[311148208,1704933040266,-1982.97164167,0.00029,2]
[311148209,1704933040276,-1000.1700289,0.00029009,2]
[311148210,1704933040285,-440546.93213,0.00029015,2]
[311148211,1704933040295,-6395.81211618,0.00029016,2]
[311148212,1704933040304,-5000.0,0.00029016,5]
[311148213,1704933040314,-5000.0,0.00029016,5]
[311148214,1704933040326,-30219.66947978,0.00029034,2]
[311148215,1704933040336,-58288.48086077,0.0002904,2]
[311148216,1704933040345,-500.0,0.00029041,2]
[311148217,1704933040354,-56317.03279544,0.00029088,3]
[311148218,1704933040364,-620.2413561,0.00029106,2]
[311148219,1704933040373,-5000.0,0.00029112,5]
[311148220,1704933040384,-500.0,0.00029178,2]
[311148221,1704933040394,-500.0,0.00029315,2]
[311148222,1704933040403,-500.0,0.00029452,2]
[311148223,1704933040413,-1500.0,0.000295,2]
[311148224,1704933040426,-157.80289105,0.00029503,2]
[311148225,1704933040437,-152.31502045,0.00029548,2]
[311148226,1704933040447,-881.07055085,0.00029582,2]
[311148227,1704933040458,-500.0,0.00029589,2]
[311148228,1704933040470,-157.80289105,0.00029612,2]
[311148229,1704933040480,-157.80289105,0.00029618,2]
[311148230,1704933040490,-157.80289105,0.00029622,2]
[311148232,1704933040500,-500.0,0.00029726,2]
[311148233,1704933040510,-151.18004956,0.00029793,2]
[311148235,1704933040521,-152.31502045,0.00029808,2]
[311148236,1704933040531,-500.0,0.00029863,2]
[311148237,1704933040541,-38363.65059237,0.0002991,2]
[311148238,1704933040551,-163.71831345,0.00029998,7]
[311148239,1704933040561,-601.2,0.00029999,2]
[311148240,1704933040575,-305.01426273,0.00029999,2]
[311148241,1704933040586,-500.0,0.00029999,2]
[311148242,1704933040598,-31364.53867359,0.0003,10]
[311148243,1704933040609,-1475.70472705,0.0003,2]
[311148244,1704933040619,-18548.99519009,0.0003,2]
[311148245,1704933040630,-698.81535711,0.0003,2]
[311148246,1704933040641,-1200.0,0.0003,4]
[311148247,1704933040652,-11907.88774822,0.0003,5]
[311148249,1704933040662,-463.38099934,0.0003,4]
[311148251,1704933040672,-639.65046808,0.0003,4]
[311148252,1704933040682,-399.65900583,0.0003,4]
[311148254,1704933040693,-236.52252731,0.0003,7]
[311148255,1704933040703,-686.6335406,0.0003,4]
[311148256,1704933040714,-18048.02930508,0.0003,4]
[311148257,1704933040725,-6973.85683356,0.0003,4]
[311148259,1704933040736,-2000.0,0.0003,2]
[311148261,1704933040748,-44493.51304511,0.0003,2]
[311148263,1704933040758,-5000.0,0.0003,2]
[311148265,1704933040769,-199.0,0.0003,2]
[311148267,1704933040779,-4999.98,0.0003,2]
[311148269,1704933040789,-5000.0,0.0003,2]
[311148271,1704933040799,-5000.0,0.0003,2]
[311148273,1704933040809,-5000.0,0.0003,2]
[311148275,1704933040818,-5000.0,0.0003,2]
[311148277,1704933040831,-5000.0,0.0003,2]
[311148279,1704933040841,-5000.0,0.0003,2]
[311148281,1704933040850,-5000.0,0.0003,2]
[311148283,1704933040859,-2366.54,0.0003,2]
[311148285,1704933040869,-3335.516558,0.0003001,2]
[311148287,1704933040878,-306.0,0.00030068,2]
[311148289,1704933040888,-153.2588251,0.00030068,2]
[311148290,1704933040898,-153.0,0.00030068,2]
[311148291,1704933040906,-155.031497,0.00030073,2]
[311148292,1704933040915,-217.044095,0.00030073,2]
[311148293,1704933040925,-152.788532,0.00030073,2]
[311148294,1704933040934,-164.471897,0.00030073,2]
[311148295,1704933040943,-337.421492,0.00030073,2]
[311148296,1704933040952,-152.788533,0.00030073,2]
[311148297,1704933040962,-160.0,0.00030117,3]
[311148298,1704933040970,-155.04341216,0.00030126,2]
[311148299,1704933040979,-282.5931468,0.00030126,3]
[311148300,1704933040989,-197.35265213,0.0003013,2]
[311148301,1704933040998,-910.63934286,0.00030134,4]
[311148302,1704933041008,-155.13939841,0.00030134,4]
[311148303,1704933041017,-155.13023848,0.00030134,4]
[311148304,1704933041026,-875.01123507,0.00030134,4]
[311148305,1704933041035,-160.0,0.00030135,10]
[311148306,1704933041044,-160.0,0.00030135,10]
[311148307,1704933041053,-806.31846376,0.00030135,4]
[311148308,1704933041062,-609.09187293,0.00030136,2]
[311148309,1704933041071,-500.0,0.00030136,2]
[311148310,1704933041084,-500.0,0.00030136,2]
[311148312,1704933041094,-500.0,0.00030136,2]
[311148314,1704933041104,-500.0,0.00030136,2]
[311148315,1704933041113,-500.0,0.00030136,2]
[311148316,1704933041123,-500.0,0.00030136,2]
[311148317,1704933041132,-500.0,0.00030136,2]
[311148318,1704933041142,-500.0,0.00030136,2]
[311148319,1704933041161,-500.0,0.00030136,2]
[311148320,1704933041171,-500.0,0.00030136,2]
[311148321,1704933041181,-500.0,0.00030136,2]
[311148322,1704933041191,-500.0,0.00030136,2]
[311148323,1704933041200,-500.0,0.00030136,2]
[311148324,1704933041209,-500.0,0.00030136,2]
[311148325,1704933041219,-500.0,0.00030136,2]
[311148326,1704933041228,-500.0,0.00030136,2]
[311148327,1704933041238,-500.0,0.00030136,2]
[311148329,1704933041247,-500.0,0.00030136,2]
[311148330,1704933041256,-500.0,0.00030136,2]
[311148332,1704933041265,-500.0,0.00030136,2]
[311148334,1704933041275,-500.0,0.00030136,2]
[311148335,1704933041285,-500.0,0.00030136,2]
[311148336,1704933041294,-500.0,0.00030136,2]
[311148337,1704933041304,-500.0,0.00030136,2]
[311148338,1704933041313,-500.0,0.00030136,2]
[311148339,1704933041326,-500.0,0.00030136,2]
[311148340,1704933041335,-500.0,0.00030136,2]
[311148341,1704933041345,-500.0,0.00030136,2]
[311148342,1704933041355,-285.5345867,0.00030136,2]
[311148343,1704933041364,-500.0,0.00030136,2]
[311148344,1704933041374,-200.0,0.00030136,2]
[311148345,1704933041383,-500.0,0.00030136,2]
[311148346,1704933041393,-500.0,0.00030136,2]
[311148347,1704933041402,-500.0,0.00030136,2]
[311148348,1704933041412,-500.0,0.00030136,2]
[311148349,1704933041421,-500.0,0.00030136,2]
[311148350,1704933041431,-500.0,0.00030136,2]
[311148351,1704933041442,-1001.38259395,0.00030136,2]
[311148352,1704933041452,-177.8276672,0.00030136,2]
[311148353,1704933041462,-500.0,0.00030136,2]
[311148354,1704933041472,-420.13288424,0.00030136,2]
[311148355,1704933041482,-500.0,0.00030136,2]
[311148356,1704933041492,-500.0,0.00030136,2]
[311148358,1704933041501,-500.0,0.00030136,2]
[311148360,1704933041510,-500.0,0.00030136,2]
[311148361,1704933041521,-500.0,0.00030136,2]
[311148362,1704933041530,-504.21942309,0.00030136,2]
[311148363,1704933041540,-500.0,0.00030136,2]
[311148364,1704933041549,-502.5845982,0.00030136,2]
[311148366,1704933041559,-500.0,0.00030136,2]
[311148367,1704933041568,-500.0,0.00030136,2]
[311148368,1704933041581,-500.0,0.00030136,2]
[311148369,1704933041591,-500.0,0.00030136,2]
[311148370,1704933041601,-500.0,0.00030136,2]
[311148371,1704933041611,-500.0,0.00030136,2]
[311148372,1704933041621,-282.4939913,0.00030136,2]
[311148373,1704933041630,-500.0,0.00030136,2]
[311148374,1704933041640,-631.82750431,0.00030136,2]
[311148375,1704933041649,-202.74783621,0.00030136,2]
[311148376,1704933041659,-500.0,0.00030136,2]
[311148377,1704933041669,-383.88957127,0.00030136,2]
[311148378,1704933041678,-500.0,0.00030136,2]
[311148379,1704933041688,-154.29729751,0.00030136,2]
[311148380,1704933041697,-521.24577177,0.00030136,2]
[311148381,1704933041707,-500.0,0.00030136,2]
[311148382,1704933041717,-500.0,0.00030136,2]
[311148383,1704933041726,-165.36565225,0.00030136,2]
[311148384,1704933041736,-344.89739807,0.00030136,2]
[311148385,1704933041746,-500.0,0.00030136,2]
[311148386,1704933041755,-500.0,0.00030136,2]
[311148387,1704933041765,-500.0,0.00030136,2]
[311148388,1704933041775,-500.0,0.00030136,2]
[311148389,1704933041785,-500.0,0.00030136,2]
[311148390,1704933041794,-500.0,0.00030136,2]
[311148391,1704933041804,-500.0,0.00030136,2]
[311148392,1704933041813,-631.6,0.00030136,2]
[311148393,1704933041825,-500.0,0.00030136,2]
[311148394,1704933041834,-500.0,0.00030136,2]
[311148395,1704933041844,-215.65813466,0.00030136,2]
[311148396,1704933041853,-504.70439341,0.00030136,2]
[311148397,1704933041862,-500.0,0.00030136,2]
[311148398,1704933041871,-504.89947469,0.00030136,2]
[311148399,1704933041880,-503.28424593,0.00030136,2]
[311148400,1704933041890,-500.0,0.00030136,2]
[311148401,1704933041899,-500.0,0.00030136,2]
[311148402,1704933041909,-500.0,0.00030136,2]
[311148403,1704933041919,-500.0,0.00030136,2]
[311148404,1704933041928,-500.0,0.00030136,2]
[311148405,1704933041937,-500.0,0.00030136,2]
[311148406,1704933041947,-502.54836695,0.00030136,2]
[311148407,1704933041957,-500.0,0.00030136,2]
[311148408,1704933041966,-500.0,0.00030136,2]
[311148409,1704933041976,-302.90524066,0.00030136,2]
[311148410,1704933041986,-665.54,0.00030136,2]
[311148411,1704933041995,-500.0,0.00030136,2]
[311148412,1704933042005,-500.0,0.00030136,2]
[311148413,1704933042015,-500.0,0.00030136,2]
[311148414,1704933042024,-500.37,0.00030136,2]
[311148415,1704933042034,-500.0,0.00030136,2]
[311148416,1704933042043,-500.0,0.00030136,2]
[311148417,1704933042052,-1196.78,0.00030136,2]
[311148418,1704933042062,-1196.78,0.00030136,2]
[311148419,1704933042072,-1196.78,0.00030136,2]
[311148420,1704933042082,-1196.78,0.00030136,2]
[311148421,1704933042092,-1196.78,0.00030136,2]
[311148422,1704933042102,-1196.78,0.00030136,2]
[311148423,1704933042111,-1196.78,0.00030136,2]
[311148424,1704933042121,-1196.78,0.00030136,2]
[311148425,1704933042131,-1196.78,0.00030136,2]
[311148426,1704933042140,-1196.78,0.00030136,2]
[311148427,1704933042149,-1196.78,0.00030136,2]
[311148428,1704933042166,-1196.78,0.00030136,2]
[311148429,1704933042175,-500.0,0.00030136,2]
[311148430,1704933042185,-1196.78,0.00030136,2]
[311148431,1704933042194,-1196.78,0.00030136,2]
[311148432,1704933042203,-500.0,0.00030136,2]
[311148433,1704933042212,-1196.78,0.00030136,2]
[311148434,1704933042222,-500.0,0.00030136,2]
[311148435,1704933042231,-1196.78,0.00030136,2]
[311148436,1704933042240,-500.0,0.00030136,2]
[311148437,1704933042249,-1196.78,0.00030136,2]
[311148438,1704933042258,-1196.78,0.00030136,2]
[311148439,1704933042267,-1196.78,0.00030136,2]
[311148440,1704933042276,-1196.78,0.00030136,2]
[311148441,1704933042285,-1196.78,0.00030136,2]
[311148442,1704933042295,-1196.78,0.00030136,2]
[311148443,1704933042304,-1196.78,0.00030136,2]
[311148444,1704933042404,-1196.96317931,0.00030136,2]
[311148445,1704933042414,-500.0,0.00030136,2]
[311148446,1704933042424,-494.86882139,0.00030136,14]
[311148447,1704933042433,-503.15109969,0.00030136,2]
[311148448,1704933042443,-500.0,0.00030136,2]
[311148449,1704933042452,-504.17601725,0.00030136,2]
[311148450,1704933042462,-500.0,0.00030136,2]
[311148451,1704933042472,-500.0,0.00030136,2]
[311148452,1704933042482,-501.33659678,0.00030136,2]
[311148453,1704933042492,-500.0,0.00030136,2]
[311148454,1704933042501,-500.0,0.00030136,2]
[311148455,1704933042511,-1793.75,0.00030136,2]
[311148456,1704933042521,-500.0,0.00030136,2]
[311148457,1704933042531,-500.0,0.00030136,2]
[311148458,1704933042540,-500.0,0.00030136,2]
[311148459,1704933042549,-500.0,0.00030136,2]
[311148460,1704933042559,-500.0,0.00030136,2]
[311148461,1704933042569,-500.0,0.00030136,2]
[311148462,1704933042584,-500.0,0.00030136,2]
[311148463,1704933042594,-500.0,0.00030136,2]
[311148464,1704933042604,-500.0,0.00030136,2]
[311148465,1704933042614,-500.0,0.00030136,2]
[311148466,1704933042623,-500.0,0.00030136,2]
[311148467,1704933042633,-500.0,0.00030136,2]
[311148468,1704933042643,-500.0,0.00030136,2]
[311148469,1704933042652,-500.0,0.00030136,2]
[311148470,1704933042662,-500.0,0.00030136,2]
[311148471,1704933042671,-551.14435428,0.00030136,2]
[311148472,1704933042680,-500.0,0.00030136,2]
[311148473,1704933042690,-456.63432085,0.00030136,2]
[311148474,1704933042699,-500.0,0.00030136,2]
[311148475,1704933042709,-500.0,0.00030136,2]
[311148476,1704933042718,-500.0,0.00030136,2]
[311148477,1704933042727,-500.0,0.00030136,2]
[311148478,1704933042737,-500.0,0.00030136,2]
[311148479,1704933042746,-500.4750682,0.00030136,2]
[311148480,1704933042756,-500.0,0.00030136,2]
[311148481,1704933042765,-500.0,0.00030136,2]
[311148482,1704933042775,-500.0,0.00030136,2]
[311148483,1704933042785,-500.0,0.00030136,2]
[311148484,1704933042794,-500.0,0.00030136,2]
[311148485,1704933042803,-500.0,0.00030136,2]
[311148486,1704933042812,-202.88905439,0.00030136,2]
[311148487,1704933042822,-500.0,0.00030136,2]
[311148488,1704933042838,-500.0,0.00030136,2]
[311148489,1704933042848,-500.0,0.00030136,2]
[311148490,1704933042858,-548.05,0.00030136,2]
[311148491,1704933042866,-229.844713,0.00030136,2]
[311148492,1704933042875,-500.0,0.00030136,2]
[311148493,1704933042884,-500.0,0.00030136,2]
[311148495,1704933042893,-500.0,0.00030136,2]
[311148497,1704933042902,-500.0,0.00030136,2]
[311148499,1704933042911,-500.0,0.00030136,2]
[311148501,1704933042920,-500.0,0.00030136,2]
[311148503,1704933042929,-504.49501268,0.00030136,2]
[311148505,1704933042939,-500.0,0.00030136,2]
[311148507,1704933042949,-500.0,0.00030136,2]
[311148509,1704933042958,-500.0,0.00030136,2]
[311148510,1704933042967,-500.0,0.00030136,2]
[311148511,1704933042977,-567.02,0.00030136,2]
[311148512,1704933042986,-500.0,0.00030136,2]
[311148514,1704933042996,-1010.55423829,0.00030136,5]
[311148517,1704933043005,-500.0,0.00030136,2]
[311148519,1704933043014,-501.59817072,0.00030136,2]
[311148522,1704933043023,-500.0,0.00030136,2]
[311148525,1704933043033,-500.0,0.00030136,2]
[311148528,1704933043042,-500.0,0.00030136,2]
[311148530,1704933043051,-154.99763678,0.00030136,2]
[311148533,1704933043061,-500.0,0.00030136,2]
[311148536,1704933043071,-505.23477724,0.00030136,2]
[311148541,1704933043083,-500.0,0.00030136,2]
[311148542,1704933043092,-500.0,0.00030136,2]
[311148544,1704933043102,-515.62358603,0.00030136,2]
[311148545,1704933043112,-500.0,0.00030136,2]
[311148546,1704933043121,-500.0,0.00030136,2]
[311148549,1704933043131,-500.0,0.00030136,2]
[311148550,1704933043141,-500.0,0.00030136,2]
[311148553,1704933043150,-500.0,0.00030136,2]
[311148558,1704933043169,-500.0,0.00030136,2]
[311148560,1704933043179,-469.24096294,0.00030136,2]
[311148561,1704933043188,-500.0,0.00030136,2]
[311148563,1704933043198,-505.88637509,0.00030136,2]
[311148564,1704933043207,-525.26945881,0.00030136,2]
[311148565,1704933043216,-500.0,0.00030136,2]
[311148566,1704933043226,-500.0,0.00030136,2]
[311148567,1704933043235,-763.96,0.00030136,2]
[311148568,1704933043244,-501.21878205,0.00030136,2]
[311148569,1704933043254,-500.0,0.00030136,2]
[311148570,1704933043263,-216.6375005,0.00030136,2]
[311148571,1704933043272,-500.0,0.00030136,2]
[311148574,1704933043282,-500.0,0.00030136,2]
[311148576,1704933043291,-500.0,0.00030136,2]
[311148579,1704933043300,-500.0,0.00030136,2]
[311148581,1704933043309,-500.0,0.00030136,2]
[311148582,1704933043318,-500.0,0.00030136,2]
[311148584,1704933043331,-500.0,0.00030136,2]
[311148586,1704933043340,-220.0,0.00030136,2]
[311148587,1704933043349,-500.0,0.00030136,2]
[311148588,1704933043357,-500.0,0.00030136,2]
[311148590,1704933043367,-500.0,0.00030136,2]
[311148592,1704933043376,-579.7,0.00030136,2]
[311148593,1704933043385,-500.0,0.00030136,2]
[311148594,1704933043395,-500.0,0.00030136,2]
[311148596,1704933043404,-500.0,0.00030136,2]
[311148597,1704933043414,-500.0,0.00030136,2]
[311148598,1704933043422,-500.30264082,0.00030136,2]
[311148599,1704933043432,-329.63216967,0.00030136,2]
[311148600,1704933043441,-500.0,0.00030136,2]
[311148601,1704933043451,-500.0,0.00030136,2]
[311148603,1704933043460,-546.3516586,0.00030136,2]
[311148604,1704933043470,-500.0,0.00030136,2]
[311148606,1704933043480,-501.12033455,0.00030136,2]
[311148608,1704933043489,-500.0,0.00030136,2]
[311148610,1704933043499,-500.0,0.00030136,2]
[311148612,1704933043509,-500.0,0.00030136,2]
[311148613,1704933043519,-500.0,0.00030136,2]
[311148614,1704933043527,-500.0,0.00030136,2]
[311148615,1704933043537,-500.0,0.00030136,2]
[311148616,1704933043546,-503.01885632,0.00030136,2]
[311148617,1704933043555,-451.84977133,0.00030136,2]
[311148618,1704933043565,-500.0,0.00030136,2]
[311148619,1704933043576,-500.0,0.00030136,2]
[311148620,1704933043585,-3072.8,0.00030136,2]
[311148621,1704933043595,-500.0,0.00030136,2]
[311148622,1704933043604,-256.23986179,0.00030136,2]
[311148623,1704933043614,-623.44,0.00030136,2]
[311148624,1704933043623,-500.0,0.00030136,2]
[311148625,1704933043632,-941.84,0.00030136,2]
[311148626,1704933043642,-1046.87,0.00030136,2]
[311148627,1704933043652,-500.0,0.00030136,2]
[311148628,1704933043662,-557.41,0.00030136,2]
[311148629,1704933043672,-512.43357224,0.00030136,2]
[311148630,1704933043681,-1262.97,0.00030136,2]
[311148631,1704933043691,-500.0,0.00030136,2]
[311148632,1704933043700,-500.0,0.00030136,2]
[311148633,1704933043710,-500.0,0.00030136,2]
[311148634,1704933043720,-500.0,0.00030136,2]
[311148635,1704933043729,-500.0,0.00030136,2]
[311148636,1704933043739,-500.0,0.00030136,2]
[311148637,1704933043749,-500.0,0.00030136,2]
[311148638,1704933043758,-500.0,0.00030136,2]
[311148639,1704933043768,-500.0,0.00030136,2]
[311148640,1704933043777,-500.0,0.00030136,2]
[311148641,1704933043786,-500.0,0.00030136,2]
[311148642,1704933043795,-523.76,0.00030136,2]
[311148643,1704933043805,-500.0,0.00030136,2]
[311148644,1704933043814,-500.0,0.00030136,2]
[311148645,1704933043825,-500.0,0.00030136,2]
[311148646,1704933043835,-506.168765,0.00030136,2]
[311148647,1704933043844,-500.30641269,0.00030136,2]
[311148648,1704933043853,-500.0,0.00030136,2]
[311148649,1704933043863,-500.0,0.00030136,2]
[311148650,1704933043873,-508.06817996,0.00030136,2]
[311148651,1704933043882,-260.89726124,0.00030136,2]
[311148652,1704933043892,-711.53,0.00030136,2]
[311148653,1704933043901,-500.0,0.00030136,2]
[311148654,1704933043911,-500.0,0.00030136,2]
[311148655,1704933043920,-500.0,0.00030136,2]
[311148656,1704933043929,-500.0,0.00030136,5]
[311148657,1704933043938,-500.0,0.00030136,2]
[311148658,1704933043948,-500.0,0.00030136,2]
[311148659,1704933043957,-500.0,0.00030136,2]
[311148660,1704933043966,-500.0,0.00030136,2]
[311148661,1704933043975,-807.88,0.00030136,2]
[311148662,1704933043984,-551.98388978,0.00030136,2]
[311148663,1704933043994,-935.25,0.00030136,2]
[311148664,1704933044003,-500.0,0.00030136,2]
[311148665,1704933044013,-281.15294469,0.00030136,2]
[311148666,1704933044022,-823.19,0.00030136,2]
[311148667,1704933044031,-500.0,0.00030136,2]
[311148668,1704933044040,-500.0,0.00030136,2]
[311148669,1704933044049,-2010.68,0.00030136,2]
[311148670,1704933044058,-500.0,0.00030136,2]
[311148671,1704933044066,-500.0,0.00030136,2]
[311148672,1704933044079,-503.86625205,0.00030136,2]
[311148673,1704933044088,-500.0,0.00030136,2]
[311148674,1704933044098,-500.0,0.00030136,2]
[311148675,1704933044107,-156.0155753,0.00030136,2]
[311148676,1704933044116,-513.25278218,0.00030136,2]
[311148677,1704933044125,-500.0,0.00030136,2]
[311148678,1704933044134,-500.0,0.00030136,2]
[311148679,1704933044144,-500.0,0.00030136,2]
[311148680,1704933044166,-500.0,0.00030136,2]
[311148681,1704933044175,-500.0,0.00030136,2]
[311148682,1704933044184,-500.0,0.00030136,2]
[311148683,1704933044194,-503.10249183,0.00030136,30]
[311148684,1704933044203,-500.0,0.00030136,2]
[311148685,1704933044212,-500.0,0.00030136,2]
[311148686,1704933044222,-9665.66,0.00030136,2]
[311148687,1704933044231,-506.65770087,0.00030136,2]
[311148688,1704933044240,-500.0,0.00030136,2]
[311148689,1704933044249,-500.0,0.00030136,2]
[311148690,1704933044258,-500.0,0.00030136,2]
[311148691,1704933044267,-500.0,0.00030136,2]
[311148692,1704933044275,-1000.0,0.00030136,2]
[311148693,1704933044284,-500.0,0.00030136,2]
[311148694,1704933044294,-500.0,0.00030136,2]
[311148695,1704933044302,-1054.16,0.00030136,2]
[311148696,1704933044311,-500.0,0.00030136,2]
[311148697,1704933044320,-500.0,0.00030136,2]
[311148698,1704933044335,-500.0,0.00030136,2]
[311148699,1704933044344,-500.0,0.00030136,2]
[311148700,1704933044354,-500.0,0.00030136,2]
[311148701,1704933044363,-500.0,0.00030136,2]
[311148702,1704933044372,-500.0,0.00030136,2]
[311148703,1704933044463,-500.0,0.00030136,2]
[311148704,1704933044474,-521.17339293,0.00030136,2]
[311148705,1704933044483,-500.0,0.00030136,2]
[311148706,1704933044493,-653.49,0.00030136,2]
[311148707,1704933044502,-500.0,0.00030136,2]
[311148708,1704933044512,-500.0,0.00030136,2]
[311148709,1704933044521,-500.0,0.00030136,2]
[311148710,1704933044530,-646.94,0.00030136,2]
[311148711,1704933044539,-500.0,0.00030136,2]
[311148712,1704933044549,-500.0,0.00030136,2]
[311148713,1704933044558,-469.88941298,0.00030136,2]
[311148714,1704933044568,-500.0,0.00030136,2]
[311148715,1704933044580,-500.0,0.00030136,2]
[311148716,1704933044590,-500.0,0.00030136,2]
[311148717,1704933044600,-5652.34,0.00030136,2]
[311148718,1704933044610,-501.1581429,0.00030136,2]
[311148719,1704933044619,-248.5658057,0.00030136,2]
[311148720,1704933044629,-500.0,0.00030136,2]
[311148721,1704933044638,-3510.36,0.00030136,2]
[311148722,1704933044648,-500.0,0.00030136,2]
[311148723,1704933044657,-500.0,0.00030136,2]
[311148724,1704933044667,-502.72071019,0.00030136,2]
[311148725,1704933044676,-500.0,0.00030136,2]
[311148726,1704933044685,-500.0,0.00030136,2]
[311148727,1704933044694,-500.0,0.00030136,2]
[311148728,1704933044703,-6462.17,0.00030136,2]
[311148729,1704933044712,-500.0,0.00030136,2]
[311148730,1704933044722,-500.0,0.00030136,2]
[311148731,1704933044731,-500.0,0.00030136,2]
[311148732,1704933044740,-500.0,0.00030136,2]
[311148733,1704933044749,-500.0,0.00030136,2]
[311148734,1704933044758,-14507.47,0.00030136,2]
[311148735,1704933044767,-16105.62507718,0.00030136,10]
[311148736,1704933044777,-1600.7,0.00030136,2]
[311148737,1704933044786,-2435.81,0.00030136,2]
[311148738,1704933044795,-509.12236943,0.00030136,2]
[311148739,1704933044804,-1750.13,0.00030136,2]
[311148740,1704933044813,-410.5381955,0.00030136,2]
[311148741,1704933044823,-500.0,0.00030136,2]
[311148742,1704933044834,-446.21810783,0.00030136,2]
[311148743,1704933044843,-502.63069071,0.00030136,2]
[311148744,1704933044852,-500.0,0.00030136,2]
[311148745,1704933044861,-500.0,0.00030136,2]
[311148746,1704933044870,-500.0,0.00030136,2]
[311148747,1704933044879,-500.0,0.00030136,2]
[311148748,1704933044889,-500.0,0.00030136,2]
[311148749,1704933044898,-501.19540855,0.00030136,2]
[311148750,1704933044907,-500.0,0.00030136,2]
[311148751,1704933044916,-419.34890934,0.00030136,2]
[311148752,1704933044926,-500.0,0.00030136,2]
[311148753,1704933044935,-500.0,0.00030136,2]
[311148754,1704933044944,-500.0,0.00030136,2]
[311148755,1704933044953,-500.0,0.00030136,2]
[311148756,1704933044962,-500.0,0.00030136,2]
[311148757,1704933044971,-5000.0,0.00030137,2]
[311148758,1704933044980,-5000.0,0.00030137,2]
[311148759,1704933044989,-2953.74434489,0.00030137,2]
[311148760,1704933044998,-5732.428758,0.00030137,2]
[311148761,1704933045007,-155.0,0.00030137,2]